fUST/lending_fUST_20250419
["ID","MTS","AMOUNT","RATE_DAILY","PERIOD"]
[358381592,1745033444495,-2385.87,0.00021917,2]
[358381593,1745033444504,-500.0,0.00021917,2]
[358381594,1745033444514,-500.0,0.00021917,2]
[358381595,1745033444524,-500.0,0.00021917,2]
[358381596,1745033444534,-500.0,0.00021917,2]
[358381597,1745033444543,-500.0,0.00021917,2]
[358381598,1745033444554,-500.0,0.00021917,2]
[358381599,1745033444564,-814.09,0.00021917,2]
[358381600,1745033444574,-500.0,0.00021917,2]
[358381601,1745033444584,-500.0,0.00021917,2]
[358381602,1745033444595,-500.0,0.00021917,2]
[358381603,1745033444604,-500.0,0.00021917,2]
[358381604,1745033444615,-500.0,0.00021917,2]
[358381605,1745033444625,-500.0,0.00021917,2]
[358381606,1745033444635,-1052.02,0.00021917,2]
[358381607,1745033444645,-500.0,0.00021917,2]
[358381608,1745033444654,-500.0,0.00021917,2]
[358381609,1745033444664,-586.77,0.00021917,2]
[358381610,1745033444674,-500.0,0.00021917,2]
[358381611,1745033444684,-500.0,0.00021917,2]
[358381612,1745033444694,-500.0,0.00021917,2]
[358381613,1745033444703,-500.0,0.00021917,2]
[358381614,1745033444713,-500.0,0.00021917,2]
[358381615,1745033444722,-514.36,0.00021917,2]
[358381616,1745033444732,-500.0,0.00021917,2]
[358381617,1745033444742,-381.86330291,0.00021917,2]
[358381618,1745033444752,-500.0,0.00021917,2]
[358381619,1745033444761,-500.0,0.00021917,2]
[358381620,1745033444771,-500.0,0.00021917,2]
[358381621,1745033444780,-500.0,0.00021917,2]
[358381622,1745033444790,-500.0,0.00021917,2]
[358381623,1745033444800,-922.01,0.00021917,2]
[358381624,1745033444811,-500.0,0.00021917,2]
[358381625,1745033444820,-240.634451,0.00021917,2]
[358381626,1745033444830,-500.0,0.00021917,2]
[358381627,1745033444839,-240.634451,0.00021917,2]
[358381628,1745033444849,-500.0,0.00021917,2]
[358381629,1745033444859,-500.0,0.00021917,2]
[358381630,1745033444869,-500.0,0.00021917,2]
[358381631,1745033444878,-240.634451,0.00021917,2]
[358381632,1745033444888,-240.634451,0.00021917,2]
[358381633,1745033444898,-500.0,0.00021917,2]
[358381634,1745033444908,-500.0,0.00021917,2]
[358381635,1745033444917,-622.4,0.00021917,2]
[358381636,1745033444926,-500.0,0.00021917,2]
[358381637,1745033444935,-500.0,0.00021917,2]
[358381638,1745033444945,-500.0,0.00021917,2]
[358381639,1745033444955,-500.0,0.00021917,2]
[358381640,1745033444964,-500.0,0.00021917,2]
[358381641,1745033444973,-500.0,0.00021917,2]
[358381642,1745033444982,-500.0,0.00021917,2]
[358381643,1745033444992,-500.0,0.00021917,2]
[358381644,1745033445002,-500.0,0.00021917,2]
[358381645,1745033445012,-500.0,0.00021917,2]
[358381646,1745033445021,-502.52381706,0.00021917,2]
[358381647,1745033445030,-500.0,0.00021917,2]
[358381648,1745033445040,-500.0,0.00021917,2]
[358381649,1745033445049,-500.0,0.00021917,2]
[358381650,1745033445058,-500.0,0.00021917,2]
[358381651,1745033445068,-582.28,0.00021917,2]
[358381652,1745033445077,-521.85646092,0.00021917,2]
[358381653,1745033445087,-500.0,0.00021917,2]
[358381654,1745033445096,-500.0,0.00021917,2]
[358381655,1745033445106,-500.0,0.00021917,2]
[358381656,1745033445115,-500.0,0.00021917,2]
[358381657,1745033445124,-500.0,0.00021917,2]
[358381658,1745033445132,-1009.12,0.00021917,2]
[358381659,1745033445142,-500.0,0.00021917,2]
[358381660,1745033445151,-500.0,0.00021917,2]
[358381661,1745033445161,-500.0,0.00021917,2]
[358381662,1745033445169,-500.0,0.00021917,2]
[358381663,1745033445179,-500.0,0.00021917,2]
[358381664,1745033445188,-3241.62,0.00021917,2]
[358381665,1745033445197,-500.0,0.00021917,2]
[358381666,1745033445206,-130.70595763,0.00021917,2]
[358381667,1745033445221,-346.79227206,0.00021917,2]
[358381668,1745033445295,-22.50177031,0.00021917,2]
[358381669,1745033445305,-500.0,0.00021917,2]
[358381670,1745033445314,-68.06701444,0.00021917,2]
[358381677,1745033446021,-160.0,0.00021312,2]
[358381678,1745033446031,-431.93298556,0.00021917,2]
[358381679,1745033446041,-32.19726576,0.00021917,2]
[358381680,1745033446078,-253.9710398,0.00021917,2]
[358381681,1745033446191,-278.16169444,0.00021917,2]
[358381682,1745033446201,-500.0,0.00021917,2]
[358381683,1745033446211,-500.0,0.00021917,2]
[358381684,1745033446221,-500.0,0.00021917,2]
[358381686,1745033446231,-500.0,0.00021917,2]
[358381687,1745033446240,-1077.69,0.00021917,2]
[358381688,1745033446250,-500.0,0.00021917,2]
[358381689,1745033446260,-500.0,0.00021917,2]
[358381690,1745033446270,-500.0,0.00021917,2]
[358381691,1745033446279,-500.0,0.00021917,2]
[358381692,1745033446291,-500.0,0.00021917,2]
[358381693,1745033446301,-500.0,0.00021917,2]
[358381694,1745033446311,-1232.25,0.00021917,2]
[358381695,1745033446320,-500.0,0.00021917,2]
[358381696,1745033446330,-500.0,0.00021917,2]
[358381697,1745033446340,-623.41,0.00021917,2]
[358381698,1745033446349,-500.0,0.00021917,2]
[358381699,1745033446358,-500.0,0.00021917,2]
[358381700,1745033446367,-500.0,0.00021917,2]
[358381701,1745033446376,-500.0,0.00021917,2]
[358381702,1745033446386,-500.0,0.00021917,2]
[358381703,1745033446394,-853.56,0.00021917,2]
[358381704,1745033446404,-500.0,0.00021917,2]
[358381705,1745033446413,-500.0,0.00021917,2]
[358381706,1745033446422,-500.0,0.00021917,2]
[358381707,1745033446431,-620.61214801,0.00021917,2]
[358381710,1745034054301,538.1566606,0.00017539,2]
[358381712,1745034291584,164.50450013,0.0001801,2]
[358381727,1745034606965,24900.0,0.00017621,2]
[358381732,1745034632101,-250.0,0.00018339,2]
[358381733,1745034632111,-1000.0,0.00018339,2]
[358381734,1745034632123,-62.943154,0.00018431,2]
[358381735,1745034632207,-237.056846,0.00018431,2]
[358381736,1745034632217,-500.0,0.00018432,2]
[358381737,1745034632227,-500.0,0.00018432,2]
[358381738,1745034632236,-500.0,0.00018432,2]
[358381739,1745034632246,-390.43182343,0.00018432,2]
[358381740,1745034632255,-500.0,0.00018432,2]
[358381741,1745034632265,-521.40370292,0.00018432,2]
[358381742,1745034632274,-500.0,0.00018432,2]
[358381743,1745034632283,-500.0,0.00018432,2]
[358381744,1745034632292,-500.0,0.00018432,2]
[358381745,1745034632302,-500.0,0.00018432,2]
[358381746,1745034632312,-500.0,0.00018432,2]
[358381747,1745034632321,-500.0,0.00018432,2]
[358381748,1745034632331,-500.0,0.00018432,2]
[358381749,1745034632340,-500.0,0.00018432,2]
[358381750,1745034632350,-500.0,0.00018432,2]
[358381751,1745034632359,-500.0,0.00018432,2]
[358381752,1745034632370,-500.0,0.00018432,2]
[358381753,1745034632380,-500.0,0.00018432,2]
[358381754,1745034632390,-500.0,0.00018432,2]
[358381755,1745034632400,-500.0,0.00018432,2]
[358381756,1745034632410,-500.0,0.00018432,2]
[358381757,1745034632420,-500.0,0.00018432,2]
[358381758,1745034632430,-500.0,0.00018432,2]
[358381759,1745034632439,-500.0,0.00018432,2]
[358381760,1745034632450,-500.0,0.00018432,2]
[358381761,1745034632459,-500.0,0.00018432,2]
[358381762,1745034632468,-414.65573433,0.00018432,2]
[358381763,1745034632478,-500.0,0.00018432,2]
[358381764,1745034632487,-500.0,0.00018432,2]
[358381765,1745034632497,-500.0,0.00018432,2]
[358381766,1745034632507,-500.0,0.00018432,2]
[358381767,1745034632517,-500.0,0.00018432,2]
[358381768,1745034632526,-500.0,0.00018432,2]
[358381769,1745034632536,-500.0,0.00018432,2]
[358381770,1745034632546,-500.0,0.00018432,2]
[358381771,1745034632557,-500.0,0.00018432,2]
[358381772,1745034632567,-337.91996822,0.00018432,2]
[358381773,1745034632577,-500.0,0.00018432,2]
[358381774,1745034632587,-500.0,0.00018432,2]
[358381775,1745034632596,-500.0,0.00018432,2]
[358381776,1745034632606,-500.0,0.00018432,2]
[358381777,1745034632616,-500.0,0.00018432,2]
[358381778,1745034632626,-500.0,0.00018432,2]
[358381779,1745034632636,-500.0,0.00018432,2]
[358381780,1745034632646,-500.0,0.00018432,2]
[358381781,1745034632656,-500.0,0.00018432,2]
[358381782,1745034632666,-500.0,0.00018432,2]
[358381783,1745034632676,-500.0,0.00018432,2]
[358381784,1745034632686,-500.0,0.00018432,2]
[358381785,1745034632695,-500.0,0.00018432,2]
[358381786,1745034632706,-300.0,0.00018432,2]
[358381787,1745034632716,-500.0,0.00018432,2]
[358381788,1745034632725,-300.0,0.00018432,2]
[358381789,1745034632735,-24743.87494837,0.00018439,2]
[358381790,1745034632746,-500.0,0.000185,2]
[358381791,1745034632755,-562.63659442,0.000185,2]
[358381792,1745034632765,-460.55855351,0.000185,2]
[358381793,1745034632774,-500.0,0.000185,2]
[358381794,1745034632783,-176.20892987,0.000185,2]
[358381795,1745034632793,-500.0,0.000185,2]
[358381796,1745034632802,-500.0,0.000185,2]
[358381797,1745034632812,-500.0,0.000185,2]
[358381798,1745034632821,-500.0,0.000185,2]
[358381799,1745034632830,-500.0,0.000185,2]
[358381800,1745034632839,-500.0,0.000185,2]
[358381801,1745034632851,-500.0,0.000185,2]
[358381802,1745034632861,-500.0,0.000185,2]
[358381803,1745034632871,-500.0,0.000185,2]
[358381804,1745034632881,-2447.3231408,0.00018645,2]
[358381805,1745034632891,-529.81317534,0.000189,2]
[358381806,1745034632900,-300.0,0.00019178,2]
[358381807,1745034632910,-1166.62189401,0.000199,2]
[358381808,1745034632920,-420.0,0.00020101,2]
[358381809,1745034632930,-420.0,0.00020201,2]
[358381810,1745034632940,-153.0,0.00020548,2]
[358381811,1745034632950,-153.0,0.00020548,2]
[358381812,1745034632959,-153.0,0.00020578,2]
[358381813,1745034632969,-428.0655852,0.00020819,2]
[358381814,1745034632979,-600.0,0.00020822,2]
[358381815,1745034632989,-1166.62189401,0.00020831,3]
[358381816,1745034632999,-153.66700299,0.00021212,2]
[358381817,1745034633008,-153.0,0.00021278,2]
[358381818,1745034633018,-153.0,0.0002137,2]
[358381819,1745034633028,-153.0,0.0002137,2]
[358381820,1745034633038,-153.0,0.0002137,2]
[358381821,1745034633048,-153.0,0.0002137,2]
[358381822,1745034633058,-153.0,0.0002137,2]
[358381823,1745034633068,-420.4931809,0.00021376,2]
[358381824,1745034633078,-160.0,0.00021376,2]
[358381825,1745034633088,-160.0,0.00021376,2]
[358381826,1745034633097,-12562.5629343,0.00021376,2]
[358381827,1745034633107,-160.0,0.00021376,2]
[358381828,1745034633116,-160.0,0.00021376,2]
[358381829,1745034633125,-153.0,0.00021378,2]
[358381830,1745034633135,-500.0,0.00021414,2]
[358381831,1745034633144,-159.009108,0.00021479,2]
[358381832,1745034633154,-153.66700299,0.00021515,2]
[358381833,1745034633164,-588.314,0.00021683,15]
[358381834,1745034633174,-1166.62189401,0.00021762,3]
[358381835,1745034633183,-153.66700299,0.00021817,2]
[358381836,1745034633193,-61863.26202739,0.0002188,2]
[358381837,1745034633207,-41184.30573512,0.0002188,2]
[358381855,1745034638271,-3652.22222711,0.0002188,2]
[358381877,1745034646210,-734.27761775,0.0002188,2]
[358381878,1745034646223,-13433.81881863,0.0002188,2]
[358381879,1745034646232,-58468.92424048,0.00021891,2]
[358381880,1745034778234,8422.0,0.0001801,2]
[358381907,1745035265522,280.9,0.0001801,2]
[358381925,1745035832185,-1000.0,0.00018239,2]
[358381926,1745035832193,-250.0,0.00018239,2]
[358381927,1745035832202,-229.39648809,0.000189,2]
[358381929,1745035832292,-123.81229547,0.000189,2]
[358381930,1745035832302,-155.39530619,0.00019509,2]
[358381931,1745035832312,-472.24364,0.00019555,2]
[358381932,1745035832321,-16.88739603,0.00020112,5]
[358381933,1745035832333,-138.50791016,0.00020112,5]
[358381935,1745035832343,-300.0,0.00020169,2]
[358381936,1745035832353,-300.0,0.00020169,2]
[358381937,1745035832365,-25164.06327125,0.0002017,2]
[358381938,1745035832377,-500.0,0.00020171,2]
[358381939,1745035832387,-338.96535608,0.00020171,2]
[358381940,1745035832396,-500.0,0.00020171,2]
[358381941,1745035832406,-500.0,0.00020171,2]
[358381942,1745035832417,-500.0,0.00020171,2]
[358381943,1745035832427,-500.0,0.00020171,2]
[358381944,1745035832436,-500.0,0.00020171,2]
[358381945,1745035832449,-500.0,0.00020171,2]
[358381946,1745035832460,-500.0,0.00020171,2]
[358381947,1745035832470,-500.0,0.00020171,2]
[358381948,1745035832479,-7462.5,0.00020172,2]
[358381949,1745035832489,-7462.5,0.00020172,2]
[358381950,1745035832499,-7462.5,0.00020172,2]
[358381951,1745035832508,-7462.5,0.00020172,2]
[358381952,1745035832518,-7462.5,0.00020172,2]
[358381953,1745035832528,-7462.5,0.00020172,2]
[358381954,1745035832537,-7462.5,0.00020172,2]
[358381955,1745035832547,-7462.5,0.00020172,2]
[358381956,1745035832557,-7462.5,0.00020172,2]
[358381957,1745035832567,-614.98550448,0.00020172,2]
[358382016,1745035838436,-500.0,0.00020169,2]
[358382017,1745035838447,-500.0,0.00020169,2]
[358382018,1745035838457,-233.89925099,0.00020169,2]
[358382020,1745035838467,-306.02386675,0.00020169,2]
[358382021,1745035838479,-193.97613325,0.00020169,2]
[358382022,1745035838488,-500.0,0.00020169,2]
[358382023,1745035838498,-8.31162582,0.00020169,2]
[358382031,1745035840786,-491.68837418,0.00020169,2]
[358382032,1745035840796,-500.0,0.00020169,2]
[358382033,1745035840806,-500.0,0.00020169,2]
[358382034,1745035840815,-521.46557342,0.00020169,2]
[358382035,1745035840825,-500.0,0.00020169,2]
[358382036,1745035840835,-500.0,0.00020169,2]
[358382037,1745035840844,-500.0,0.00020169,2]
[358382038,1745035840854,-500.0,0.00020169,2]
[358382039,1745035840863,-500.0,0.00020169,2]
[358382040,1745035840872,-500.0,0.00020169,2]
[358382041,1745035840882,-561.80710991,0.00020169,2]
[358382042,1745035840891,-500.0,0.00020169,2]
[358382043,1745035840900,-500.0,0.00020169,2]
[358382044,1745035840910,-500.0,0.00020169,2]
[358382045,1745035840919,-500.0,0.00020169,2]
[358382046,1745035840929,-500.0,0.00020169,2]
[358382047,1745035840939,-5223.06424554,0.00020172,2]
[358382048,1745035840950,-1624.45024998,0.00020172,2]
[358382049,1745035840959,-232.39167458,0.00020172,2]
[358382076,1745035846342,-381.92818453,0.00020172,2]
[358382077,1745035846396,-3746.78737795,0.00020172,2]
[358382172,1745037032322,-250.0,0.00018139,2]
[358382173,1745037032332,-124.05366051,0.00018139,2]
[358382174,1745037032344,-875.94633949,0.00018139,2]
[358382175,1745037032354,-235.47252237,0.000189,2]
[358382176,1745037032363,-817.30625469,0.00018976,2]
[358382177,1745037032375,-1073.36140284,0.00018976,2]
[358382178,1745037032395,-480.67178367,0.00018976,2]
[358382179,1745037032404,-160.323252,0.00019069,2]
[358382180,1745037032416,-160.323252,0.00019164,2]
[358382181,1745037032426,-250.0,0.00019918,2]
[358382182,1745037032435,-198.61581785,0.00019969,2]
[358382183,1745037032445,-507.28528423,0.0002,2]
[358382184,1745037032455,-1348.87158136,0.0002,2]
[358382185,1745037032465,-300.0,0.00020066,2]
[358382186,1745037032474,-300.0,0.00020067,2]
[358382187,1745037032484,-500.0,0.00020068,2]
[358382188,1745037032495,-500.0,0.00020068,2]
[358382189,1745037032505,-500.0,0.00020068,2]
[358382190,1745037032515,-387.27574926,0.00020068,2]
[358382191,1745037032529,-500.0,0.00020068,2]
[358382192,1745037032539,-500.0,0.00020068,2]
[358382193,1745037032550,-500.0,0.00020068,2]
[358382194,1745037032560,-500.0,0.00020068,2]
[358382195,1745037032571,-395.75634554,0.00020068,2]
[358382196,1745037032584,-224.60728594,0.00020068,2]
[358382197,1745037032594,-500.0,0.00020068,2]
[358382198,1745037032605,-4171.41,0.00020069,2]
[358382199,1745037032615,-4171.41,0.00020069,2]
[358382200,1745037032624,-4171.41,0.00020069,2]
[358382201,1745037032634,-4171.41,0.00020069,2]
[358382202,1745037032643,-4171.41,0.00020069,2]
[358382203,1745037032652,-4171.41,0.00020069,2]
[358382204,1745037032661,-4171.41,0.00020069,2]
[358382205,1745037032671,-4171.41,0.00020069,2]
[358382206,1745037032680,-4171.41,0.00020069,2]
[358382207,1745037032689,-4171.41,0.00020069,2]
[358382208,1745037032698,-4171.41,0.00020069,2]
[358382209,1745037032708,-4171.41,0.00020069,2]
[358382210,1745037032717,-4171.41,0.00020069,2]
[358382211,1745037032727,-4171.41,0.00020069,2]
[358382212,1745037032736,-4171.41,0.00020069,2]
[358382213,1745037032746,-4171.41,0.00020069,2]
[358382214,1745037032755,-4171.41,0.00020069,2]
[358382215,1745037032764,-4171.41,0.00020069,2]
[358382216,1745037032774,-4171.41,0.00020069,2]
[358382217,1745037032784,-4171.41,0.00020069,2]
[358382218,1745037032794,-4171.41,0.00020069,2]
[358382219,1745037032804,-4171.41,0.00020069,2]
[358382220,1745037032815,-4171.41,0.00020069,2]
[358382221,1745037032825,-4171.56276294,0.00020069,2]
[358382222,1745037032835,-22460.06027688,0.00020069,2]
[358382223,1745037032852,-1722.64703909,0.00020069,2]
[358382224,1745037032866,-28819.05603519,0.00020069,2]
[358382225,1745037032875,-13572.09046798,0.00020069,3]
[358382226,1745037032885,-839.40992179,0.0002007,3]
[358382227,1745037032895,-28816.36753601,0.0002007,2]
[358382228,1745037032905,-500.0,0.000201,2]
[358382229,1745037032915,-200.0,0.000201,2]
[358382230,1745037032924,-500.0,0.000201,2]
[358382231,1745037032933,-500.0,0.000201,2]
[358382232,1745037032943,-500.0,0.000201,2]
[358382233,1745037032953,-500.0,0.000201,2]
[358382234,1745037032962,-500.0,0.000201,2]
[358382235,1745037032973,-500.0,0.000201,2]
[358382236,1745037032983,-408.66284962,0.000201,2]
[358382237,1745037032992,-500.0,0.000201,2]
[358382238,1745037033002,-500.0,0.000201,2]
[358382239,1745037033011,-500.0,0.000201,2]
[358382240,1745037033021,-500.0,0.000201,2]
[358382241,1745037033030,-502.28744062,0.000201,2]
[358382242,1745037033040,-512.22095919,0.000201,2]
[358382243,1745037033051,-502.3738339,0.000201,2]
[358382244,1745037033060,-151.0,0.000201,2]
[358382245,1745037033070,-313.643206,0.000201,2]
[358382246,1745037033080,-313.643206,0.000201,2]
[358382247,1745037033091,-325.178553,0.000201,2]
[358382248,1745037033100,-325.178553,0.000201,2]
[358382249,1745037033110,-500.0,0.000201,2]
[358382250,1745037033119,-500.0,0.000201,2]
[358382251,1745037033129,-500.0,0.000201,2]
[358382252,1745037033139,-501.6832447,0.000201,2]
[358382253,1745037033149,-500.0,0.000201,2]
[358382254,1745037033159,-500.0,0.000201,2]
[358382255,1745037033169,-500.0,0.000201,2]
[358382256,1745037033179,-300.0,0.000201,2]
[358382257,1745037033189,-500.0,0.000201,2]
[358382258,1745037033199,-500.0,0.000201,2]
[358382259,1745037033208,-500.0,0.000202,2]
[358382260,1745037033218,-500.0,0.000202,2]
[358382261,1745037033227,-500.0,0.000202,2]
[358382262,1745037033238,-500.0,0.00020567,2]
[358382263,1745037033247,-501.51189444,0.00020567,2]
[358382264,1745037033258,-198.61581784,0.00020893,2]
[358382265,1745037033268,-1049.95970487,0.000209,3]
[358382266,1745037033278,-4286.7274727,0.00020913,2]
[358382267,1745037033288,-151.0,0.00020913,2]
[358382268,1745037033298,-1685.924626,0.00020913,2]
[358382269,1745037033308,-1685.924626,0.00020913,2]
[358382270,1745037033318,-157.0,0.00021,2]
[358382271,1745037033328,-200.0,0.000211,2]
[358382272,1745037033338,-151.0,0.00021194,2]
[358382273,1745037033350,-151.0,0.00021194,2]
[358382274,1745037033360,-151.0,0.00021194,2]
[358382275,1745037033370,-151.0,0.00021194,2]
[358382276,1745037033380,-151.0,0.00021194,2]
[358382277,1745037033390,-151.0,0.00021194,2]
[358382278,1745037033400,-151.0,0.00021194,2]
[358382279,1745037033410,-151.0,0.00021194,2]
[358382280,1745037033420,-151.0,0.00021194,2]
[358382281,1745037033430,-151.0,0.00021194,2]
[358382282,1745037033440,-151.0,0.00021194,2]
[358382283,1745037033450,-151.0,0.00021194,2]
[358382284,1745037033459,-151.0,0.00021194,2]
[358382285,1745037033469,-151.0,0.00021194,2]
[358382286,1745037033479,-151.0,0.00021194,2]
[358382287,1745037033490,-151.0,0.00021194,2]
[358382288,1745037033500,-151.0,0.00021194,2]
[358382289,1745037033510,-151.0,0.00021194,2]
[358382290,1745037033520,-151.0,0.00021194,2]
[358382291,1745037033530,-302.0,0.00021194,2]
[358382292,1745037033540,-207.4,0.00021194,2]
[358382293,1745037033550,-12553.36997132,0.00021368,2]
[358382294,1745037033560,-420.4931809,0.00021368,2]
[358382295,1745037033569,-160.0,0.00021368,2]
[358382296,1745037033579,-160.0,0.00021368,2]
[358382297,1745037033589,-160.0,0.00021368,2]
[358382298,1745037033599,-531.60062975,0.00021546,2]
[358382299,1745037033608,-500.92039168,0.00021686,2]
[358382300,1745037033618,-539.49,0.000217,15]
[358382301,1745037033628,-600.0,0.00021744,2]
[358382302,1745037033638,-1049.9597046,0.00021762,3]
[358382303,1745037033648,-198.61581784,0.00021817,2]
[358382304,1745037033658,-839.40992179,0.00021833,2]
[358382305,1745037033668,-420.0,0.00021849,2]
[358382306,1745037033679,-8406.6453005,0.00021891,2]
[358382307,1745037033689,-151.0,0.00021891,2]
[358382308,1745037033699,-151.0,0.00021891,2]
[358382309,1745037033709,-151.0,0.00021891,2]
[358382310,1745037033719,-266.441112,0.00021891,2]
[358382311,1745037033729,-672.605928,0.00021891,2]
[358382312,1745037033739,-672.605928,0.00021891,2]
[358382313,1745037033750,-1897.14,0.000219,2]
[358382314,1745037033760,-154.62,0.000219,2]
[358382315,1745037033769,-500.0,0.00021904,2]
[358382316,1745037033779,-160.0,0.00021917,3]
[358382317,1745037033789,-151.0,0.00021917,2]
[358382318,1745037033799,-151.0,0.00021917,2]
[358382319,1745037033809,-151.0,0.00021917,2]
[358382320,1745037033822,-151.715074,0.00021917,2]
[358382321,1745037033832,-151.0,0.00021917,2]
[358382322,1745037033841,-151.0,0.00021917,2]
[358382323,1745037033851,-151.0,0.00021917,2]
[358382324,1745037033868,-151.0,0.00021917,2]
[358382325,1745037033881,-151.0,0.00021917,2]
[358382326,1745037033892,-191.750261,0.00021917,2]
[358382327,1745037033902,-151.0,0.00021917,2]
[358382328,1745037033912,-171.331257,0.00021917,2]
[358382329,1745037033922,-151.0,0.00021917,2]
[358382330,1745037033933,-151.0,0.00021917,2]
[358382331,1745037033943,-151.0,0.00021917,2]
[358382332,1745037033954,-151.0,0.00021917,2]
[358382333,1745037033963,-151.0,0.00021917,2]
[358382334,1745037033973,-151.0,0.00021917,2]
[358382335,1745037033984,-151.0,0.00021917,2]
[358382336,1745037033995,-151.0,0.00021917,2]
[358382337,1745037034006,-151.0,0.00021917,2]
[358382338,1745037034017,-151.0,0.00021917,2]
[358382339,1745037034027,-151.0,0.00021917,2]
[358382340,1745037034037,-151.0,0.00021917,2]
[358382341,1745037034047,-151.0,0.00021917,2]
[358382342,1745037034057,-151.0,0.00021917,2]
[358382343,1745037034068,-152.062833,0.00021917,2]
[358382344,1745037034078,-151.0,0.00021917,2]
[358382345,1745037034088,-151.0,0.00021917,2]
[358382346,1745037034098,-155.622125,0.00021917,2]
[358382347,1745037034107,-500.0,0.00021917,2]
[358382348,1745037034117,-500.0,0.00021917,2]
[358382349,1745037034127,-500.0,0.00021917,2]
[358382350,1745037034137,-821.73,0.00021917,2]
[358382351,1745037034148,-500.0,0.00021917,2]
[358382352,1745037034158,-500.0,0.00021917,2]
[358382353,1745037034168,-500.0,0.00021917,2]
[358382354,1745037034177,-500.0,0.00021917,2]
[358382355,1745037034187,-1026.91,0.00021917,2]
[358382356,1745037034198,-500.0,0.00021917,2]
[358382357,1745037034208,-194.435122,0.00021917,2]
[358382358,1745037034218,-500.0,0.00021917,2]
[358382359,1745037034228,-194.435122,0.00021917,2]
[358382360,1745037034238,-194.435122,0.00021917,2]
[358382361,1745037034248,-194.435122,0.00021917,2]
[358382362,1745037034258,-194.435122,0.00021917,2]
[358382363,1745037034268,-194.435122,0.00021917,2]
[358382364,1745037034278,-194.435122,0.00021917,2]
[358382365,1745037034288,-194.435122,0.00021917,2]
[358382366,1745037034298,-194.435122,0.00021917,2]
[358382367,1745037034311,-194.435122,0.00021917,2]
[358382368,1745037034322,-194.435122,0.00021917,2]
[358382369,1745037034332,-194.435122,0.00021917,2]
[358382370,1745037034342,-500.0,0.00021917,2]
[358382371,1745037034352,-500.0,0.00021917,2]
[358382372,1745037034362,-500.0,0.00021917,2]
[358382373,1745037034372,-902.42,0.00021917,2]
[358382374,1745037034383,-500.0,0.00021917,2]
[358382375,1745037034393,-500.0,0.00021917,2]
[358382376,1745037034405,-151.0,0.00021917,2]
[358382377,1745037034415,-500.0,0.00021917,2]
[358382378,1745037034426,-522.59,0.00021917,2]
[358382379,1745037034436,-500.0,0.00021917,2]
[358382380,1745037034446,-500.0,0.00021917,2]
[358382381,1745037034457,-829.63,0.00021917,2]
[358382382,1745037034467,-500.0,0.00021917,2]
[358382383,1745037034477,-500.0,0.00021917,2]
[358382384,1745037034487,-500.0,0.00021917,2]
[358382385,1745037034497,-500.0,0.00021917,2]
[358382386,1745037034507,-500.0,0.00021917,2]
[358382387,1745037034518,-151.0,0.00021917,2]
[358382388,1745037034528,-151.0,0.00021917,2]